bitfinex/quotes_ETHUSD_20250708
["timestamp","ask_amount","ask_price","bid_price","bid_amount"]
[1751997045276,9.68766546,2616.7,2616.4,0.1914]
[1751997045466,3.82189948,2616.5,2616.4,0.1914]
[1751997046759,3.82175342,2616.6,2616.4,0.1914]
[1751997046760,3.82182323,2616.6,2616.4,0.1914]
[1751997046958,3.82094749,2617.2,2616.5,1.32721899]
[1751997047291,0.002,2617.3,2617.1,3.82098155]
[1751997047588,0.002,2617.3,2617.2,0.739]
[1751997049991,3.82273128,2617.3,2617.2,0.739]
[1751997050194,3.82273128,2617.3,2616.4,10.001]
[1751997050195,3.82109754,2617.1,2616.9,0.739]
[1751997050489,3.82109754,2617.1,2616.5,0.55]
[1751997050490,3.8212473,2617.0,2616.7,0.739]
[1751997050796,0.7936,2617.2,2616.7,1.3994]
[1751997050960,0.7936,2617.2,2616.7,0.739]
[1751997050961,3.82118864,2617.0,2616.7,0.739]
[1751997051367,3.82110516,2617.1,2616.7,0.739]
[1751997051703,4.61453877,2617.2,2616.5,8.2843771]
[1751997051704,3.8215238,2616.8,2616.5,8.2843771]
[1751997051907,3.82141271,2616.9,2616.5,2.4193771]
[1751997052201,3.82141271,2616.9,2616.5,3.57090387]
[1751997052602,3.82104626,2617.1,2616.5,0.739]
[1751997052795,3.82168163,2616.7,2616.4,0.001]
[1751997052992,3.82168163,2616.7,2616.4,1.6813771]
[1751997053306,3.82168163,2616.7,2616.4,0.001]
[1751997053503,3.82168163,2616.7,2616.5,1.6803771]
[1751997053705,3.82137278,2616.9,2616.5,1.6803771]
[1751997053904,3.82137278,2616.9,2616.4,5.50335381]
[1751997054106,3.82137278,2616.9,2616.5,1.6803771]
[1751997054276,3.82152294,2616.8,2616.5,1.6803771]
[1751997054999,3.82161308,2616.7,2616.5,1.6803771]
[1751997055191,3.82166997,2616.7,2616.5,1.6803771]
[1751997055588,3.82166997,2616.7,2616.4,1.6813771]
[1751997055796,3.82166997,2616.7,2616.4,0.001]
[1751997055997,3.82137207,2616.9,2616.4,0.001]
[1751997056308,3.82146132,2616.8,2616.4,0.001]
[1751997056891,3.82163536,2616.7,2616.5,0.1904]
[1751997057096,3.82131529,2616.9,2616.5,0.1904]
[1751997057293,9.8766253,2617.0,2616.5,4.01228154]
[1751997057502,3.82132338,2616.9,2616.5,0.1904]
[1751997057813,6.0554,2617.0,2616.5,0.1904]
[1751997057814,3.82153073,2616.8,2616.5,0.1904]
[1751997058012,9.87662328,2617.0,2616.5,0.1904]
[1751997058013,3.82135191,2616.9,2616.5,4.01227888]
[1751997058198,3.82116847,2617.1,2616.6,3.82174401]
[1751997058517,3.82123018,2617.0,2616.8,0.1904]
[1751997058814,3.82098264,2617.2,2616.8,0.9294]
[1751997059188,3.82123125,2617.0,2616.8,0.9294]
[1751997059382,3.82131529,2616.9,2616.8,0.9294]
[1751997059582,3.82131529,2616.9,2616.8,0.1904]
[1751997060019,3.82119678,2617.0,2616.8,0.1904]
[1751997060020,3.82109503,2617.1,2616.8,0.1904]
[1751997060389,0.002,2617.3,2617.1,0.739]
[1751997060602,0.002,2617.3,2617.1,4.55997614]
[1751997061423,0.002,2617.3,2617.2,4.40908604]
[1751997061621,0.002,2617.3,2617.2,6.6054]
[1751997061807,0.002,2617.3,2617.2,10.46448604]
[1751997061993,0.002,2617.3,2617.2,0.7404]
[1751997062193,0.002,2617.3,2617.2,6.64260877]
[1751997062393,0.002,2617.3,2617.2,2.04323215]
[1751997062589,0.002,2617.3,2617.2,0.77860877]
[1751997062903,0.002,2617.3,2617.2,6.0544]
[1751997063103,0.002,2617.3,2617.2,9.87527727]
[1751997063514,0.002,2617.3,2617.2,10.42527727]
[1751997065099,0.002,2617.3,2617.2,11.16427727]
[1751997065304,0.002,2617.3,2617.2,12.6628071]
[1751997066198,0.002,2617.3,2617.2,6.7988071]
[1751997066399,0.002,2617.3,2617.2,6.7934]
[1751997066993,0.002,2617.3,2617.2,10.61427727]
[1751997068614,0.002,2617.3,2617.2,10.61327727]
[1751997069217,0.002,2617.3,2617.2,11.16327727]
[1751997070017,0.002,2617.3,2617.2,21.16327727]
[1751997070200,0.002,2617.3,2617.2,22.84889932]
[1751997070444,0.002,2617.3,2617.2,26.6977918]
[1751997070936,0.002,2617.3,2617.2,25.01216975]
[1751997073160,0.002,2617.3,2617.2,26.69584511]
[1751997073363,0.002,2617.3,2617.2,25.01216975]
[1751997074183,0.002,2617.3,2617.2,26.69579079]
[1751997074341,0.002,2617.3,2617.2,25.01216975]
[1751997076268,1e-08,2617.3,2617.2,25.01216975]
[1751997076469,1e-08,2617.3,2617.2,28.33336068]
[1751997076652,1e-08,2617.3,2617.2,28.33236068]
[1751997076853,1e-08,2617.3,2617.2,25.01116975]
[1751997077355,1e-08,2617.3,2617.2,21.39225481]
[1751997077532,1e-08,2617.3,2617.2,27.25425481]
[1751997078973,1e-08,2617.3,2617.2,21.39225481]
[1751997079159,1e-08,2617.3,2617.2,27.25425481]
[1751997079472,1e-08,2617.3,2617.2,25.01116975]
[1751997079674,1e-08,2617.3,2617.2,28.83584185]
[1751997080056,1e-08,2617.3,2617.2,33.52584185]
[1751997080255,1e-08,2617.3,2617.2,30.20465092]
[1751997081450,1e-08,2617.3,2617.2,29.70116975]
[1751997082567,1e-08,2617.3,2617.2,33.05778798]
[1751997082769,1e-08,2617.3,2617.2,29.70116975]
[1751997083654,1e-08,2617.3,2617.2,55.73340273]
[1751997083849,1e-08,2617.3,2617.2,55.07175069]
[1751997084084,1e-08,2617.3,2617.2,49.48164073]
[1751997084379,0.002,2618.4,2618.3,3.81927204]
[1751997084579,0.002,2618.4,2618.3,31.55476456]
[1751997084780,1e-08,2618.4,2618.3,31.74516456]
[1751997086064,1e-08,2618.4,2618.3,33.41993397]
[1751997086259,1e-08,2618.4,2618.3,31.74516456]
[1751997086647,0.002,2618.5,2618.4,14.36912618]
[1751997086648,1e-08,2618.5,2618.4,14.36912618]
[1751997086858,1e-08,2618.5,2618.4,18.95701866]
[1751997087094,1e-08,2618.5,2618.4,21.19324093]
[1751997088854,1e-08,2618.5,2618.4,25.88324093]
[1751997090184,1e-08,2618.5,2618.4,29.50701866]
[1751997093300,1e-08,2618.5,2618.4,29.50601866]
[1751997093499,1e-08,2618.5,2618.4,30.84481144]
[1751997094705,1e-08,2618.5,2618.4,32.51870899]
[1751997094865,1e-08,2618.5,2618.4,30.84481144]
[1751997095065,1e-08,2618.5,2618.4,33.08103371]
[1751997095675,0.002,2619.6,2619.5,3.81752242]
[1751997095889,0.002,2619.6,2619.5,23.67186077]
[1751997096159,1e-08,2619.6,2619.5,33.63368555]
[1751997096783,1e-08,2619.6,2619.5,27.77468555]
[1751997096988,1e-08,2619.6,2619.5,33.63368555]
[1751997097568,1e-08,2619.6,2619.5,23.43012023]
[1751997097774,1e-08,2619.6,2619.5,23.43112023]
[1751997098807,1e-08,2619.6,2619.5,23.42912023]
[1751997099131,1e-08,2619.6,2619.5,17.62017296]
[1751997099265,1e-08,2619.6,2619.5,23.47817296]
[1751997099573,1e-08,2619.6,2619.5,21.20397515]
[1751997099890,1e-08,2619.6,2619.5,21.75397515]
[1751997100291,1e-08,2619.6,2619.5,17.56759635]
[1751997100483,1e-08,2619.6,2619.5,21.75397515]
[1751997100683,1e-08,2619.6,2619.5,23.98506171]
[1751997100884,1e-08,2619.6,2619.5,27.1746654]
[1751997101282,1e-08,2619.6,2619.5,27.9136654]
[1751997102599,1e-08,2619.6,2619.5,25.68257884]
[1751997102768,1e-08,2619.6,2619.5,27.91066724]
[1751997103098,1e-08,2619.6,2619.5,25.68257884]
[1751997103701,1e-08,2619.6,2619.5,27.91066724]
[1751997105305,0.799,2620.9,2620.8,10.41602881]
[1751997105474,0.0726358,2621.1,2621.0,0.55]
[1751997105672,0.0726358,2621.1,2621.0,10.41573765]
[1751997109403,0.0726358,2621.1,2621.0,11.55223979]
[1751997111311,0.0726358,2621.1,2621.0,0.1904]
[1751997111612,0.8906358,2621.1,2621.0,6.0454]
[1751997112110,0.8906358,2621.1,2621.0,10.41073765]
[1751997112480,0.0726358,2621.1,2621.0,10.41073765]
[1751997112680,0.0726358,2621.1,2621.0,11.83335708]
[1751997114707,0.0726358,2621.1,2621.0,5.97835708]
[1751997114883,0.0726358,2621.1,2621.0,10.41073765]
[1751997116114,0.0726358,2621.1,2621.0,20.41073765]
[1751997116412,0.7819,2621.5,2621.0,20.41073765]
[1751997116413,0.7819,2621.5,2621.4,3.81475547]
[1751997116627,0.8084,2621.9,2621.7,0.55]
[1751997116791,0.8084,2621.9,2621.8,5.855]
[1751997116991,0.8084,2621.9,2621.8,9.85957346]
[1751997117310,0.0726358,2622.0,2621.9,4.36402799]
[1751997117510,3.81302965,2622.6,2622.2,0.55]
[1751997117720,0.7918,2622.5,2622.4,0.1904]
[1751997117880,4.60495538,2622.5,2622.4,0.1904]
[1751997118085,4.60495538,2622.5,2621.9,3.81399987]
[1751997118086,4.60518381,2622.4,2622.3,5.864]
[1751997118302,0.7918,2622.4,2622.3,5.864]
[1751997118712,0.889005,2622.4,2622.3,11.40465079]
[1751997119014,0.889005,2622.4,2622.3,6.6034]
[1751997119227,0.889005,2622.4,2622.3,6.6044]
[1751997119400,0.889005,2622.4,2622.3,4.55384621]
[1751997119604,0.097205,2622.4,2622.3,10.41784621]
[1751997120184,0.097205,2622.4,2622.3,4.55384621]
[1751997120513,0.097205,2622.4,2622.3,10.46098067]
[1751997120714,0.097205,2622.4,2622.3,21.92420292]
[1751997120915,0.097205,2622.4,2622.3,16.05520292]
[1751997121088,0.097205,2622.4,2622.3,21.92420292]
[1751997121599,0.097205,2622.4,2622.3,16.05520292]
[1751997121785,0.097205,2622.4,2622.3,21.92420292]
[1751997122185,0.097205,2622.4,2622.3,15.10244621]
[1751997122386,0.097205,2622.4,2622.3,20.97044621]
[1751997122630,0.097205,2622.4,2622.3,15.10244621]
[1751997122796,0.097205,2622.4,2622.3,20.97044621]
[1751997123114,0.097205,2622.4,2622.3,20.97544621]
[1751997123316,0.097205,2622.4,2622.3,23.45434947]
[1751997124515,1e-08,2622.4,2622.3,23.45434947]
[1751997124685,0.25,2622.9,2622.3,23.45434947]
[1751997124686,1e-08,2622.9,2622.8,4.36271923]
[1751997124886,3.88569423,2624.1,2622.8,4.36271923]
[1751997124887,0.005,2624.7,2623.9,4.55012085]
[1751997125122,0.005,2624.7,2624.6,14.36010439]
[1751997125287,0.3206533,2625.4,2625.3,3.80908848]
[1751997125288,0.27434462,2625.4,2625.3,3.80908848]
[1751997125624,4.08328801,2625.4,2625.3,0.03809088]
[1751997125940,4.08328801,2625.4,2624.0,9.61801209]
[1751997125941,0.7792,2625.1,2624.0,0.45501209]
[1751997126139,0.7792,2625.1,2623.8,0.739]
[1751997126140,3.81050462,2624.4,2623.9,5.937]
[1751997126436,3.80919485,2625.3,2623.6,10.0]
[1751997126437,11.03546532,2625.2,2624.0,0.03810975]
[1751997126600,3.81083091,2624.1,2623.7,5.97611411]
[1751997126915,11.03546532,2624.0,2622.8,3.8126867]
[1751997127118,3.81250952,2623.0,2622.4,4.5522215]
[1751997127295,0.8319,2623.1,2622.5,0.03813155]
[1751997127499,0.8319,2623.1,2622.6,3.81299135]
[1751997127696,4.6442677,2623.1,2622.5,9.94725057]
[1751997127887,0.8319,2623.1,2622.4,0.70590932]
[1751997128094,3.81252311,2623.0,2622.5,0.03813155]
[1751997128330,3.81252311,2623.0,2622.3,6.092]
[1751997128331,3.81257838,2622.9,2622.3,6.092]
[1751997128532,3.81275992,2622.8,2622.2,3.84142228]
[1751997128734,3.81342291,2622.4,2622.2,0.0279684]
[1751997129032,4.57004621,2622.3,2622.2,0.0279684]
[1751997129388,5.02705083,2622.3,2622.2,0.0279684]
[1751997129586,12.185,2623.3,2622.2,0.0279684]
[1751997129587,0.8174,2624.4,2622.3,5.399]
[1751997129797,0.8174,2624.4,2623.4,0.55]
[1751997129998,0.8174,2624.4,2624.1,0.55]
[1751997130199,0.002,2624.2,2624.1,0.55]
[1751997130423,0.002,2624.2,2624.1,4.36083037]
[1751997130644,0.002,2624.2,2624.1,5.27493053]
[1751997130818,0.002,2624.2,2624.1,15.27493053]
[1751997131022,0.002,2624.2,2624.1,15.23682223]
[1751997131247,0.002,2624.2,2624.1,15.97582223]
[1751997131544,0.8174,2625.2,2624.7,0.55]
[1751997131756,0.8174,2625.2,2624.9,0.55]
[1751997131913,0.8174,2625.2,2625.1,0.55]
[1751997132108,0.8174,2625.2,2625.0,0.03809523]
[1751997132308,0.8174,2625.2,2625.1,0.1904]
[1751997132544,0.8174,2625.2,2624.2,0.28580042]
[1751997132545,3.80991719,2624.8,2624.4,0.55]
[1751997132719,0.1904,2625.1,2624.7,0.1904]
[1751997133051,3.80975348,2624.9,2624.7,0.1904]
[1751997133251,4.59064243,2624.9,2624.7,0.1904]
[1751997133461,3.80981408,2624.8,2624.7,0.1904]
[1751997133631,0.78095374,2624.9,2624.4,0.58810394]
[1751997133632,0.78095374,2624.9,2624.8,0.1904]
[1751997133841,3.80963814,2625.0,2624.8,0.1904]
[1751997134148,0.1924,2625.3,2624.9,0.55]
[1751997134346,0.8114,2626.3,2624.9,7.71184271]
[1751997134541,0.8114,2626.3,2625.6,0.55]
[1751997134922,0.8114,2626.3,2625.8,0.55]
[1751997135127,0.8114,2626.3,2626.0,0.55]
[1751997135427,1.28225063,2626.3,2625.3,6.361]
[1751997135645,3.80797808,2626.1,2625.4,10.55]
[1751997135846,3.80807677,2626.0,2625.4,14.35888491]
[1751997136221,3.8079854,2626.1,2625.6,0.55]
[1751997136429,0.38079854,2626.0,2625.6,0.55]
[1751997136731,0.8114,2626.3,2625.6,0.55]
[1751997136732,0.8114,2626.3,2625.8,0.55]
[1751997137455,0.8114,2626.3,2625.4,10.0]
[1751997137655,0.8114,2626.3,2625.7,6.358]
[1751997138025,3.8077831,2626.2,2625.5,0.58808798]
[1751997138227,0.8114,2626.3,2624.9,10.0]
[1751997138228,3.8079288,2626.1,2625.6,6.356]
[1751997138429,0.46193288,2626.1,2625.7,6.906]
[1751997138751,4.26988157,2626.1,2625.7,0.55]
[1751997138955,0.46193288,2626.1,2624.9,10.0]
[1751997139280,3.80855506,2625.7,2625.0,6.39609523]
[1751997139567,3.80865499,2625.6,2624.9,10.0]
[1751997139764,3.80842071,2625.8,2625.0,6.39509523]
[1751997140570,3.80842071,2625.8,2625.2,10.0]
[1751997140731,0.46193288,2626.1,2625.3,0.55]
[1751997140927,0.8114,2626.3,2625.4,6.35]
[1751997141149,3.80829139,2625.9,2625.4,10.15891367]
[1751997141455,3.8080256,2626.1,2625.5,4.39687272]
[1751997141675,3.80797279,2626.1,2625.5,4.39687272]
[1751997141834,3.8077831,2626.2,2625.5,4.39687272]
[1751997142160,3.80808802,2626.0,2625.5,4.39687272]
[1751997142544,3.80783763,2626.2,2625.8,0.55]
[1751997142731,4.6191127,2626.3,2625.8,0.55]
[1751997143341,3.80779219,2626.2,2625.8,0.55]
[1751997143563,0.8114,2626.3,2625.8,3.8082429]
[1751997143860,3.80777951,2626.3,2625.8,0.03808363]
[1751997144034,3.80777951,2626.3,2625.8,3.80834625]
[1751997144233,3.8077831,2626.2,2626.1,0.1896]
[1751997144844,3.8079349,2626.1,2625.9,0.1904]
[1751997145254,3.80784766,2626.2,2625.9,0.1904]
[1751997145586,0.0896994,2626.4,2625.9,1.2278991]
[1751997145784,0.0896994,2626.4,2626.3,0.1896]
[1751997147095,3.89719254,2626.4,2626.3,0.1896]
[1751997147301,3.80772156,2626.3,2625.8,3.80828347]
[1751997147504,3.80772156,2626.3,2626.2,0.1896]
[1751997148405,4.57821307,2626.3,2626.2,0.1896]
[1751997148598,3.80772156,2626.3,2626.2,0.1896]
[1751997148960,3.89719562,2626.4,2626.2,0.1896]
[1751997148961,0.0896994,2626.4,2626.2,0.1896]
[1751997149490,0.0896994,2626.4,2625.9,6.318]
[1751997149491,3.80934035,2625.2,2624.8,0.1904]
[1751997149697,0.7832,2625.5,2625.0,0.1904]
[1751997149894,3.80851724,2625.7,2625.2,3.80914312]
[1751997150194,3.8080747,2626.0,2625.7,0.1904]
[1751997150392,3.80829596,2625.9,2625.7,0.1904]
[1751997150598,3.80820149,2626.0,2625.7,0.1904]
[1751997150799,0.7807,2626.1,2625.7,3.99881639]
[1751997151001,0.7807,2626.1,2625.9,0.1904]
[1751997151208,0.2792994,2626.4,2625.9,6.5484]
[1751997151402,0.0896994,2626.4,2626.0,10.20408182]
[1751997151619,0.0896994,2626.4,2626.3,0.1896]
[1751997152683,3.80793663,2626.1,2625.7,0.55]
[1751997152892,3.80976194,2626.3,2626.1,0.1896]
[1751997153104,0.002,2626.3,2626.1,6.5406]
[1751997153410,3.74911449,2626.5,2626.1,6.5406]
[1751997153573,3.80736582,2626.5,2626.1,6.5406]
[1751997153775,3.80751281,2626.4,2626.1,6.5406]
[1751997154073,0.1896,2626.6,2626.1,0.1896]
[1751997154281,3.8077831,2626.2,2626.1,0.1896]
[1751997154612,1.19518343,2626.5,2626.1,0.1896]
[1751997154773,0.7955,2626.5,2626.1,0.1896]
[1751997154972,0.7955,2626.5,2626.1,3.99747957]
[1751997155307,3.80756566,2626.4,2626.3,0.1896]
[1751997155609,3.80756566,2626.4,2626.0,0.03808073]
[1751997155610,3.8079281,2626.1,2626.0,0.03808073]
[1751997155823,3.80849399,2625.8,2625.3,0.03909088]
[1751997155972,4.26645855,2626.1,2625.3,6.364]
[1751997156174,3.80859292,2625.7,2625.3,0.001]
[1751997156375,3.80844962,2625.8,2625.3,10.17607421]
[1751997156714,3.80852608,2625.7,2625.3,0.001]
[1751997156879,3.80872369,2625.6,2625.4,6.365]
[1751997157383,4.58636906,2625.5,2625.3,6.362]
[1751997157595,0.7775,2625.5,2625.3,6.362]
[1751997157795,3.80860161,2625.7,2625.3,6.362]
[1751997157796,3.80852853,2625.7,2625.3,6.362]
[1751997158107,11.51879451,2626.8,2625.6,3.80856018]
[1751997158108,0.7843,2626.1,2625.6,3.80856018]
[1751997158296,3.80815339,2626.0,2625.5,3.80875603]
[1751997158506,0.7843,2626.1,2625.6,3.80860789]
[1751997158507,4.59227089,2626.1,2625.6,3.80860789]
[1751997158678,3.80807962,2626.0,2625.7,12.717]
[1751997158879,4.59230876,2626.1,2625.7,12.717]
[1751997159350,10.1629518,2626.8,2625.7,12.717]
[1751997159351,0.7843,2626.4,2625.7,14.29442007]
[1751997159622,3.80799402,2626.1,2625.7,12.717]
[1751997159919,0.7843,2626.4,2625.8,1.33337634]
[1751997159920,3.80785732,2626.2,2625.8,1.33337634]
[1751997160217,3.80785732,2626.2,2625.9,1.33337634]
[1751997160425,3.80778792,2626.2,2625.7,16.52546193]
[1751997160600,3.80778792,2626.2,2625.8,1.33426715]
[1751997160779,3.80778792,2626.2,2625.9,1.33426715]
[1751997161092,3.80778792,2626.2,2626.0,1.33426715]
[1751997161302,3.80778792,2626.2,2625.7,18.18862805]
[1751997161507,3.80770323,2626.3,2625.8,5.14305959]
[1751997161822,3.80770323,2626.3,2625.9,7.67978764]
[1751997162123,3.80770323,2626.3,2626.0,7.67778764]
[1751997162324,0.7843,2626.4,2626.0,10.15099796]
[1751997162627,4.59179574,2626.4,2626.1,1.33475502]
[1751997162781,4.59179574,2626.4,2626.0,6.343]
[1751997162982,3.80765511,2626.3,2626.1,1.33532901]
[1751997163279,4.59187535,2626.4,2626.2,1.33550306]
[1751997163480,4.59187535,2626.4,2626.0,6.343]
[1751997163676,4.59187535,2626.4,2626.1,1.33650283]
[1751997163880,4.59187535,2626.4,2626.2,1.33650283]
[1751997164226,0.7843,2626.4,2626.3,1.33638661]
[1751997164424,4.59180191,2626.4,2626.3,1.33638661]
[1751997165134,0.7843,2626.4,2626.3,7.66738661]
[1751997165331,4.59179314,2626.4,2626.3,7.66738661]
[1751997166226,3.80763812,2626.3,2626.2,0.1896]
[1751997166399,4.59182826,2626.4,2626.3,6.327]
[1751997167002,4.78142826,2626.4,2626.3,6.327]
[1751997168286,3.80778054,2626.3,2626.2,6.316]
[1751997168489,3.80778054,2626.3,2626.2,7.65350435]
[1751997170207,3.80778054,2626.3,2626.2,1.33750435]
[1751997170522,3.80778054,2626.3,2626.2,7.65250435]
[1751997170690,3.80745493,2626.5,2626.2,9.32359208]
[1751997170891,3.80749314,2626.4,2626.3,3.00859208]
[1751997171193,3.80749314,2626.4,2626.3,1.33750435]
[1751997171526,3.80749314,2626.4,2626.3,3.00859208]
[1751997172028,3.80749314,2626.4,2626.3,9.31059208]
[1751997172215,3.99702492,2626.5,2626.3,9.31059208]
[1751997172403,3.99702492,2626.5,2626.4,1.33750435]
[1751997173514,4.85365063,2626.5,2626.4,7.63550435]
[1751997175127,0.1896,2626.5,2626.4,7.63550435]
[1751997175493,3.99694818,2626.5,2626.4,7.63550435]
[1751997176505,0.1896,2626.5,2626.4,7.63550435]
[1751997176728,0.1896,2626.8,2626.4,7.63550435]
[1751997176929,3.80709083,2626.7,2626.5,1.33750435]
[1751997177243,0.1896,2626.8,2626.6,7.61550435]
[1751997177542,3.80691335,2626.8,2626.7,1.33750435]
[1751997177913,4.58724593,2626.8,2626.7,1.33750435]
[1751997178228,5.34694593,2626.8,2626.7,7.61150435]
[1751997178428,4.56661335,2626.8,2626.7,7.61150435]
[1751997179203,3.91586414,2627.6,2626.8,0.55]
[1751997179434,0.1896,2627.3,2626.9,7.61623637]
[1751997179622,0.1896,2627.3,2627.0,1.34309475]
[1751997179822,0.828,2627.5,2626.7,0.739]
[1751997180133,3.80663038,2627.0,2626.8,7.80784106]
[1751997180332,3.80641052,2627.2,2626.9,1.34324106]
[1751997180503,3.80641052,2627.2,2627.0,7.61724106]
[1751997180699,3.80601543,2627.5,2627.0,10.08049954]
[1751997180898,3.80598013,2627.5,2627.1,1.57044421]
[1751997181103,4.1054333,2627.6,2627.2,7.61477943]
[1751997181328,3.9157606,2627.6,2627.3,1.34277943]
[1751997181516,3.9157606,2627.6,2627.4,7.96547242]
[1751997181720,0.11,2627.6,2627.5,0.34969299]
[1751997182325,0.11,2627.6,2627.5,0.38775198]
[1751997182536,0.11,2627.6,2627.5,5.5038237]
[1751997182735,0.11,2627.6,2627.5,6.01576471]
[1751997183038,0.11,2627.6,2627.5,8.0942764]
[1751997183437,0.11,2627.6,2627.5,14.3622764]
[1751997183741,0.11,2627.6,2627.5,7.95720468]
[1751997183925,3.9157543,2627.6,2627.5,6.61969299]
[1751997184108,3.9157543,2627.6,2627.5,0.34969299]
[1751997184441,3.80647862,2627.1,2627.0,6.269]
[1751997184613,3.80647862,2627.1,2627.0,7.60727947]
[1751997184809,3.80647862,2627.1,2627.0,1.33827947]
[1751997185010,1.53748124,2627.1,2626.6,1.67108773]
[1751997185222,3.80691335,2626.8,2626.7,3.00897364]
[1751997185421,3.80691335,2626.8,2626.7,1.33788591]
[1751997185839,3.80705828,2626.7,2626.5,7.93808773]
[1751997186139,0.7762,2627.1,2626.6,1.33779852]
[1751997186437,3.80705828,2626.7,2626.6,6.267]
[1751997186639,3.80705828,2626.7,2626.6,7.60526813]
[1751997186839,3.80705828,2626.7,2626.6,6.267]
[1751997187518,3.80720322,2626.6,2626.5,6.262]
[1751997187720,3.80736083,2626.5,2626.4,6.262]
[1751997187912,3.80692455,2626.8,2626.3,6.261]
[1751997188241,3.80681717,2626.9,2626.4,0.6261]
[1751997188541,0.0580463,2627.0,2626.4,0.6261]
[1751997188542,0.0580463,2627.0,2626.8,3.80690467]
[1751997188729,0.0580463,2627.0,2626.9,11.95672916]
[1751997188929,0.0580463,2627.0,2626.9,12.69572916]
[1751997189130,0.0580463,2627.0,2626.9,22.69572916]
[1751997189330,0.0580463,2627.0,2626.9,27.18418817]
[1751997189846,0.0580463,2627.0,2626.9,25.51310044]
[1751997190527,0.0580463,2627.0,2626.9,27.18527857]
[1751997190734,0.0580463,2627.0,2626.9,27.18727857]
[1751997192531,0.0580463,2627.0,2626.9,4.89533201]
[1751997192848,0.0580463,2627.0,2626.9,4.93339969]
[1751997193036,0.0580463,2627.0,2626.9,8.37102841]
[1751997193341,0.0580463,2627.0,2626.9,8.33296073]
[1751997193848,0.0580463,2627.0,2626.9,8.52256073]
[1751997194011,3.86466982,2627.0,2626.9,1.52856073]
[1751997194348,3.80691539,2626.8,2626.4,11.44427813]
[1751997194641,0.0580463,2627.0,2626.6,0.1896]
[1751997194816,0.0580463,2627.0,2626.7,11.39462109]
[1751997195016,0.0580463,2627.0,2626.8,1.56627026]
[1751997195344,0.0580463,2627.0,2626.9,6.25]
[1751997195652,0.0580463,2627.0,2626.9,7.27466473]
[1751997195946,0.0580463,2627.0,2626.9,7.46426473]
[1751997196518,3.80676843,2626.9,2626.5,1.59908428]
[1751997196748,3.8071454,2626.7,2626.6,7.58584145]
[1751997197154,3.80725588,2626.6,2626.4,0.6261]
[1751997197358,3.80726954,2626.6,2626.5,7.58593781]
[1751997197650,3.99662472,2626.8,2626.5,7.58593781]
[1751997197951,4.64721154,2627.0,2626.5,6.247]
[1751997198165,0.1896,2626.9,2626.5,6.28507348]
[1751997198341,0.1896,2626.9,2626.6,1.02821601]
[1751997198535,3.99644933,2626.9,2626.7,6.244]
[1751997199141,0.1896,2626.9,2626.7,6.244]
[1751997199318,0.0580463,2627.0,2626.7,6.244]
[1751997199524,3.86467773,2627.0,2626.7,6.244]
[1751997199745,0.0580463,2627.0,2626.7,7.37090835]
[1751997200026,0.0580463,2627.0,2626.8,3.84485119]
[1751997200242,0.0580463,2627.0,2626.9,6.238]
[1751997200452,0.0580463,2627.0,2626.9,10.04476843]
[1751997200956,0.0580463,2627.0,2626.9,6.238]
[1751997201270,0.0580463,2627.0,2626.9,8.71624484]
[1751997201867,0.0580463,2627.0,2626.9,8.70924484]
[1751997202246,3.86466982,2627.0,2626.9,1.34401561]
[1751997202446,3.86466982,2627.0,2626.9,6.229]
[1751997202447,0.2476463,2627.0,2626.9,6.229]
[1751997202647,0.0580463,2627.0,2626.9,7.57368295]
[1751997202855,4.656896,2627.0,2626.9,6.228]
[1751997203062,4.846496,2627.0,2626.9,6.228]
[1751997203241,3.80692938,2626.8,2626.5,0.1896]
[1751997203441,4.8465735,2627.0,2626.6,6.23]
[1751997203631,3.8069267,2626.8,2626.6,7.25651661]
[1751997203834,3.80677128,2626.9,2626.6,7.25651661]
[1751997204036,3.80686126,2626.9,2626.6,1.02651661]
[1751997204270,3.80691669,2626.8,2626.7,6.225]
[1751997204671,4.8465221,2627.0,2626.7,6.225]
[1751997204672,3.80681159,2626.9,2626.7,6.225]
[1751997204872,3.80691335,2626.8,2626.7,6.225]
[1751997205242,3.8070616,2626.7,2626.5,0.1896]
[1751997205439,3.80698176,2626.8,2626.6,7.56763777]
[1751997205766,3.9965221,2626.8,2626.6,6.221]
[1751997205940,0.1896,2626.8,2626.6,6.221]
[1751997206135,0.1896,2626.8,2626.6,7.22384731]
[1751997206367,3.80678575,2626.9,2626.6,7.41344731]
[1751997206576,3.80678575,2626.9,2626.7,1.34764405]
[1751997206741,3.80678575,2626.9,2626.6,7.41344731]
[1751997207064,3.80678575,2626.9,2626.7,1.34746984]
[1751997207266,3.80677117,2626.9,2626.6,7.41344731]
[1751997207474,3.80677117,2626.9,2626.7,2.36879889]
[1751997207634,3.80691335,2626.8,2626.7,1.02147389]
[1751997207839,3.80691335,2626.8,2626.7,7.5618254]
[1751997208074,4.05436002,2627.0,2626.7,7.5618254]
[1751997208255,4.05436002,2627.0,2626.7,6.213]
[1751997208460,4.05436002,2627.0,2626.3,0.739]
[1751997208461,4.5907194,2626.4,2626.1,0.001]
[1751997208662,4.7805831,2626.2,2626.1,0.001]
[1751997209239,4.63015326,2625.6,2625.5,0.001]
[1751997211271,3.80858373,2625.7,2625.5,0.001]
[1751997211446,0.7586,2625.9,2625.5,0.001]
[1751997211657,3.99905326,2625.6,2625.5,0.001]
[1751997214380,10.20647667,2627.1,2625.6,3.80858703]
[1751997214381,3.80805821,2626.1,2625.6,3.80858703]
[1751997214584,0.8271,2626.2,2625.7,5.1920761]
[1751997214585,4.63499742,2626.2,2625.7,5.1920761]
[1751997215083,4.63499742,2626.2,2625.7,1.38363708]
[1751997215084,3.80799141,2626.1,2625.7,1.38363708]
[1751997215260,3.8080834,2626.0,2625.7,1.38363708]
[1751997215455,0.8271,2626.2,2625.7,5.19207812]
[1751997215784,0.0580463,2627.0,2626.4,3.8074125]
[1751997216075,3.806975,2626.8,2626.5,6.217]
[1751997216278,3.80684161,2626.9,2626.5,6.244]
[1751997216643,0.0580463,2627.0,2626.5,6.244]
[1751997216644,0.0580463,2627.0,2626.6,0.03807203]
[1751997216851,0.0580463,2627.0,2626.6,0.6282072]
[1751997217077,3.80682322,2626.9,2626.6,6.241]